[Event "FIDE WCCC Open-10 2024"]
[Site "Montesilvano"]
[Date "2024.11.18"]
[Round "2.32"]
[White "Nguyen Truong An Khang"]
[Black "Ismailov, Omarbek"]
[Result "1-0"]
[ECO "D35"]
[WhiteElo "1836"]
[BlackElo "1625"]
[PlyCount "117"]
[EventDate "2024.11.18"]
[EventType "swiss"]
[EventCountry "ITA"]
[TimeControl "5400+30"]

1. d4 {[%emt 0:00:03]} d5 {[%emt 0:00:05]} 2. c4 {[%emt 0:00:06]} e6 {[%emt 0:00:06]} 3. Nc3 {[%emt 0:00:16]} Nf6 {[%emt 0:00:05]} 4. cxd5 {[%emt 0:00:08]} exd5 {[%emt 0:00:05]} 5. Bg5 {[%emt 0:00:08]} c6 {[%emt 0:00:08]} 6. e3 {[%emt 0:00:05]} Bf5 {[%emt 0:00:05]} 7. Qf3 {[%emt 0:00:11]} Bg6 {[%emt 0:00:07]} 8. Bxf6 {[%emt 0:00:19]} Qxf6 {[%emt 0:00:03]} 9. Qxf6 {[%emt 0:00:44]} gxf6 {[%emt 0:00:07]} 10. Nf3 {[%emt 0:00:16]} h5 {[%emt 0:00:43]} 11. Nh4 {[%emt 0:00:40]} Bh7 {[%emt 0:00:28]} 12. f4 {[%emt 0:00:12]} Nd7 {[%emt 0:00:24]} 13. f5 {[%emt 0:02:15]} Bh6 {[%emt 0:00:09]} 14. Bd3 {[%emt 0:08:57]} Bxe3 {[%emt 0:00:46]} 15. Nf3 {[%emt 0:01:12]} Nb6 {[%emt 0:05:10]} 16. Ke2 {[%emt 0:04:27]} Bg5 {[%emt 0:00:19]} 17. b3 {[%emt 0:01:13]} Kd7 {[%emt 0:01:06]} 18. Kf2 {[%emt 0:06:47]} Rhg8 {[%emt 0:04:09]} 19. Rhe1 {[%emt 0:05:15]} Nc8 {[%emt 0:03:39]} 20. Ne2 {[%emt 0:06:08]} Nd6 {[%emt 0:15:37]} 21. h4 {[%emt 0:05:58]} Bh6 {[%emt 0:01:30]} 22. Ng3 {[%emt 0:00:13]} Rg4 {[%emt 0:06:01]} 23. Nxh5 {[%emt 0:03:51]} Bg7 {[%emt 0:00:14]} 24. Ng3 {[%emt 0:05:46]} Rg8 {[%emt 0:00:30]} 25. Rh1 {[%emt 0:11:53]} Bh8 {[%emt 0:00:54]} 26. Rh3 {[%emt 0:02:44]} Ne4+ {[%emt 0:00:49]} 27. Bxe4 {[%emt 0:01:05]} dxe4 {[%emt 0:00:09]} 28. Ne1 {[%emt 0:07:52]} e3+ {[%emt 0:01:18]} 29. Kf3 {[%emt 0:00:10]} Rxd4 {[%emt 0:00:12]} 30. Nc2 {[%emt 0:00:40]} Rd3 {[%emt 0:03:05]} 31. Nxe3 {[%emt 0:03:38]} Re8 {[%emt 0:00:18]} 32. Re1 {[%emt 0:00:25]} Re5 {[%emt 0:04:31]} 33. Kf2 {[%emt 0:04:54]} Rd2+ {[%emt 0:04:59]} 34. Re2 {[%emt 0:00:47]} Rxe2+ {[%emt 0:00:14]} 35. Kxe2 {[%emt 0:00:05]} Ra5 {[%emt 0:01:01]} 36. a4 {[%emt 0:01:18]} b5 {[%emt 0:00:24]} 37. Rh1 {[%emt 0:04:19]} bxa4 {[%emt 0:06:27]} 38. Ra1 {[%emt 0:00:07]} a3 {[%emt 0:00:50]} 39. b4 {[%emt 0:02:02]} Ra4 {[%emt 0:00:55]} 40. Ne4 {[%emt 0:00:20]} Rxb4 {[%emt 0:01:23]} 41. Kf3 {[%emt 0:00:43]} Rb5 {[%emt 0:07:18]} 42. g4 {[%emt 0:00:35]} a2 {[%emt 0:13:29]} 43. Rxa2 {[%emt 0:01:19]} a5 {[%emt 0:00:09]} 44. Ra3 {[%emt 0:01:01]} Kc7 {[%emt 0:02:06]} 45. Nc4 {[%emt 0:00:14]} Bxf5 {[%emt 0:00:35]} 46. gxf5 {[%emt 0:00:37]} Rxf5+ {[%emt 0:00:06]} 47. Kg4 {[%emt 0:00:42]} Rd5 {[%emt 0:00:39]} 48. Ne3 {[%emt 0:00:31]} Re5 {[%emt 0:01:36]} 49. Kf4 {[%emt 0:00:21]} Bg7 {[%emt 0:00:20]} 50. Nf5 {[%emt 0:01:25]} Bf8 {[%emt 0:00:57]} 51. Ra2 {[%emt 0:00:07]} Kd7 {[%emt 0:03:22]} 52. Rd2+ {[%emt 0:01:00]} Kc7 {[%emt 0:00:27]} 53. Nxf6 {[%emt 0:00:13]} Re6 {[%emt 0:00:51]} 54. Rd7+ {[%emt 0:03:54]} Kb6 {[%emt 0:01:09]} 55. Rxf7 {[%emt 0:00:13]} Bb4 {[%emt 0:00:25]} 56. h5 {[%emt 0:02:02]} Bd2+ {[%emt 0:01:11]} 57. Kf3 {[%emt 0:00:26]} Bg5 {[%emt 0:00:29]} 58. Nd7+ {[%emt 0:00:09]} Kc7 {[%emt 0:01:51]} 59. Nf8+ {[%emt 0:00:56]} 1-0

[Event "FIDE WCCC Open-10 2024"]
[Site "Montesilvano"]
[Date "2024.11.18"]
[Round "2.33"]
[White "Burba, Mikita"]
[Black "Akramov, Khasan"]
[Result "1-0"]
[ECO "B35"]
[WhiteElo "1528"]
[BlackElo "1835"]
[PlyCount "93"]
[EventDate "2024.11.18"]
[EventType "swiss"]
[EventCountry "ITA"]
[TimeControl "5400+30"]

1. e4 {[%emt 0:00:02]} c5 {[%emt 0:00:03]} 2. Nf3 {[%emt 0:00:08]} Nc6 {[%emt 0:00:03]} 3. d4 {[%emt 0:00:06]} cxd4 {[%emt 0:00:03]} 4. Nxd4 {[%emt 0:00:08]} g6 {[%emt 0:00:02]} 5. Nc3 {[%emt 0:00:10]} Bg7 {[%emt 0:00:09]} 6. Be3 {[%emt 0:00:07]} Nf6 {[%emt 0:00:07]} 7. Bc4 {[%emt 0:00:37]} O-O {[%emt 0:00:05]} 8. Bb3 {[%emt 0:00:09]} Re8 {[%emt 0:00:03]} 9. f3 {[%emt 0:00:44]} e6 {[%emt 0:00:05]} 10. f4 {[%emt 0:00:07]} d6 {[%emt 0:00:03]} 11. Ndb5 {[%emt 0:00:38]} Re7 {[%emt 0:00:07]} 12. O-O {[%emt 0:14:48]} Ne8 {[%emt 0:00:25]} 13. Nd4 {[%emt 0:06:51]} Na5 {[%emt 0:04:26]} 14. Qf3 {[%emt 0:08:32]} Nxb3 {[%emt 0:18:04]} 15. axb3 {[%emt 1:04:53]} Nf6 {[%emt 0:15:18]} 16. h3 {[%emt 0:00:00]} e5 {[%emt 0:07:59]} 17. fxe5 {[%emt 0:00:00]} Rxe5 {[%emt 0:00:14]} 18. Bf4 {[%emt 0:00:00]} Rh5 {[%emt 0:00:20]} 19. Qf2 {[%emt 0:02:00]} Bxh3 {[%emt 0:19:10]} 20. gxh3 {[%emt 0:00:00]} Rxh3 {[%emt 0:00:35]} 21. Bg5 {[%emt 0:00:00]} Qd7 {[%emt 0:00:10]} 22. Nf5 {[%emt 0:00:00]} Rh5 {[%emt 0:07:36]} 23. Bxf6 {[%emt 0:00:00]} Bxf6 {[%emt 0:00:03]} 24. Ng3 {[%emt 0:00:00]} Qg4 {[%emt 0:00:38]} 25. Nce2 {[%emt 0:00:00]} Be5 {[%emt 0:06:19]} 26. Qxf7+ {[%emt 0:00:00]} Kh8 {[%emt 0:00:04]} 27. Qf3 {[%emt 0:00:00]} Qg5 {[%emt 0:04:07]} 28. Rxa7 {[%emt 0:00:00]} Rg8 {[%emt 0:01:09]} 29. Rf2 {[%emt 0:00:27]} Rh3 {[%emt 0:03:11]} 30. Rg2 {[%emt 0:01:04]} Qh6 {[%emt 0:00:25]} 31. Rxb7 {[%emt 0:03:18]} Ra8 {[%emt 0:03:22]} 32. Rf7 {[%emt 0:00:36]} Bg7 {[%emt 0:01:18]} 33. Qf1 {[%emt 0:00:54]} Qe3+ {[%emt 0:00:47]} 34. Qf2 {[%emt 0:00:26]} Ra1+ {[%emt 0:01:44]} 35. Nf1 {[%emt 0:00:12]} Qh6 {[%emt 0:00:46]} 36. Neg3 {[%emt 0:00:35]} Rd1 {[%emt 0:00:16]} 37. Rxg7 {[%emt 0:00:53]} Qxg7 {[%emt 0:00:12]} 38. Qb6 {[%emt 0:00:25]} Qf6 {[%emt 0:00:22]} 39. Qb8+ {[%emt 0:00:09]} Kg7 {[%emt 0:00:14]} 40. Qa7+ {[%emt 0:00:24]} Kg8 {[%emt 0:01:00]} 41. Qa8+ {[%emt 0:00:11]} Kf7 {[%emt 0:00:28]} 42. Qb7+ {[%emt 0:00:36]} Ke8 {[%emt 0:02:16]} 43. Qc8+ {[%emt 0:00:07]} Ke7 {[%emt 0:00:03]} 44. Qxh3 {[%emt 0:00:08]} h5 {[%emt 0:00:11]} 45. Rf2 {[%emt 0:00:23]} Qg5 {[%emt 0:00:15]} 46. Qg2 {[%emt 0:00:37]} Qh4 {[%emt 0:00:31]} 47. Qf3 {[%emt 0:00:33]} 1-0

[Event "FIDE WCCC Open-10 2024"]
[Site "Montesilvano"]
[Date "2024.11.18"]
[Round "2.34"]
[White "Garcia Tanjala, Marko"]
[Black "Aitmukhanov, Arsen"]
[Result "1/2-1/2"]
[ECO "B30"]
[WhiteElo "1833"]
[BlackElo "1579"]
[PlyCount "76"]
[EventDate "2024.11.18"]
[EventType "swiss"]
[EventCountry "ITA"]
[TimeControl "5400+30"]

1. e4 {[%emt 0:00:02]} c5 {[%emt 0:00:07]} 2. Nf3 {[%emt 0:00:24]} Nc6 {[%emt 0:00:05]} 3. Bc4 {[%emt 0:01:36]} a6 {[%emt 0:02:11]} 4. a4 {[%emt 0:01:23]} e5 {[%emt 0:01:06]} 5. Nc3 {[%emt 0:03:25]} Be7 {[%emt 0:00:10]} 6. d3 {[%emt 0:01:01]} Nf6 {[%emt 0:00:21]} 7. Bg5 {[%emt 0:02:53]} d6 {[%emt 0:02:53]} 8. h3 {[%emt 0:01:10]} Be6 {[%emt 0:01:05]} 9. Bxf6 {[%emt 0:01:16]} Bxf6 {[%emt 0:00:55]} 10. Nd5 {[%emt 0:01:38]} g6 {[%emt 0:01:33]} 11. Nxf6+ {[%emt 0:01:05]} Qxf6 {[%emt 0:00:17]} 12. Bxe6 {[%emt 0:00:35]} fxe6 {[%emt 0:00:11]} 13. c3 {[%emt 0:01:11]} O-O {[%emt 0:02:25]} 14. O-O {[%emt 0:00:16]} Rad8 {[%emt 0:02:42]} 15. Qb3 {[%emt 0:00:55]} Qe7 {[%emt 0:06:13]} 16. Nh2 {[%emt 0:02:00]} d5 {[%emt 0:02:19]} 17. Ng4 {[%emt 0:03:36]} d4 {[%emt 0:01:13]} 18. Rad1 {[%emt 0:02:36]} h5 {[%emt 0:04:57]} 19. Nh2 {[%emt 1:12:58]} Rf4 {[%emt 0:03:20]} 20. g3 {[%emt 0:00:00]} Rf7 {[%emt 0:00:12]} 21. f4 {[%emt 0:00:00]} exf4 {[%emt 0:09:10]} 22. Rxf4 {[%emt 0:00:00]} Rxf4 {[%emt 0:00:10]} 23. gxf4 {[%emt 0:02:00]} dxc3 {[%emt 0:02:16]} 24. bxc3 {[%emt 0:00:00]} Na5 {[%emt 0:00:53]} 25. Qb2 {[%emt 0:00:00]} Qh4 {[%emt 0:01:35]} 26. Qb6 {[%emt 0:00:00]} Nc6 {[%emt 0:07:39]} 27. Qxb7 {[%emt 0:02:00]} Ne7 {[%emt 0:02:19]} 28. Qxa6 Qxh3 29. Rd2 {[%emt 0:01:00]} Qg3+ {[%emt 0:04:39]} 30. Rg2 {[%emt 0:00:00]} Qe3+ {[%emt 0:00:06]} 31. Kh1 Rxd3 32. Qxe6+ {[%emt 0:00:00]} Kf8 {[%emt 0:01:04]} 33. Rg1 {[%emt 0:02:00]} Rd2 {[%emt 0:42:54]} 34. Qe5 {[%emt 0:00:30]} Rc2 {[%emt 0:00:00]} 35. Qb8+ {[%emt 0:00:00]} Kg7 {[%emt 0:00:00]} 36. Qe5+ {[%emt 0:00:00]} Kf8 {[%emt 0:00:00]} 37. Qb8+ {[%emt 0:00:00]} Kg7 {[%emt 0:00:00]} 38. Qe5+ {[%emt 0:00:00]} Kf8 {[%emt 0:00:00]} 1/2-1/2

[Event "FIDE WCCC Open-10 2024"]
[Site "Montesilvano"]
[Date "2024.11.18"]
[Round "2.35"]
[White "Perez Solanas, Hugo"]
[Black "Kostyukovich, Ivan"]
[Result "0-1"]
[ECO "C47"]
[WhiteElo "1824"]
[BlackElo "1489"]
[PlyCount "94"]
[EventDate "2024.11.18"]
[EventType "swiss"]
[EventCountry "ITA"]
[TimeControl "5400+30"]

1. e4 {[%emt 0:00:02]} e5 {[%emt 0:00:08]} 2. Nf3 {[%emt 0:00:08]} Nc6 {[%emt 0:00:36]} 3. Nc3 {[%emt 0:00:11]} Nf6 {[%emt 0:00:13]} 4. a3 {[%emt 0:00:14]} Bc5 {[%emt 0:00:33]} 5. Nxe5 {[%emt 0:00:30]} Nxe5 {[%emt 0:00:31]} 6. d4 {[%emt 0:00:09]} Bxd4 {[%emt 0:00:18]} 7. Qxd4 {[%emt 0:00:14]} Nc6 {[%emt 0:00:26]} 8. Qa4 {[%emt 0:03:50]} h6 {[%emt 0:01:31]} 9. Bf4 {[%emt 0:01:52]} d6 {[%emt 0:01:31]} 10. O-O-O {[%emt 0:01:42]} Bd7 {[%emt 0:01:12]} 11. Qc4 {[%emt 0:03:41]} O-O {[%emt 0:01:23]} 12. Nd5 {[%emt 0:03:27]} Nxd5 {[%emt 0:05:51]} 13. exd5 {[%emt 0:00:24]} Ne5 {[%emt 0:00:41]} 14. Bxe5 {[%emt 0:00:50]} dxe5 {[%emt 0:00:13]} 15. Bd3 {[%emt 0:00:48]} Qg5+ {[%emt 0:02:30]} 16. Kb1 {[%emt 0:00:21]} c6 {[%emt 0:00:53]} 17. Qe4 {[%emt 0:02:58]} g6 {[%emt 0:01:37]} 18. h4 {[%emt 0:02:20]} Qf4 {[%emt 0:01:27]} 19. Qxf4 {[%emt 0:03:26]} exf4 {[%emt 0:00:20]} 20. d6 {[%emt 0:00:11]} Rad8 {[%emt 0:01:00]} 21. c4 {[%emt 0:00:44]} c5 {[%emt 0:00:29]} 22. Be4 {[%emt 0:16:22]} b6 {[%emt 0:01:57]} 23. Rhe1 {[%emt 0:04:20]} Rfe8 {[%emt 0:01:59]} 24. f3 {[%emt 0:04:42]} Re6 {[%emt 0:03:05]} 25. Bc2 {[%emt 0:24:06]} Rxe1 {[%emt 0:03:15]} 26. Rxe1 {[%emt 0:00:16]} Be6 {[%emt 0:01:03]} 27. Bxg6 {[%emt 0:04:46]} Rxd6 {[%emt 0:04:14]} 28. Be4 {[%emt 0:02:55]} Bxc4 {[%emt 0:01:24]} 29. Kc2 {[%emt 0:00:13]} Be6 {[%emt 0:03:18]} 30. Kc3 {[%emt 0:01:10]} Kg7 {[%emt 0:03:57]} 31. Bc2 {[%emt 0:03:39]} a5 {[%emt 0:03:47]} 32. a4 {[%emt 0:03:39]} Rd4 {[%emt 0:01:23]} 33. Re4 {[%emt 0:01:20]} Bf5 {[%emt 0:02:11]} 34. Rxd4 {[%emt 0:02:45]} cxd4+ {[%emt 0:01:19]} 35. Kd2 {[%emt 0:00:10]} Bxc2 {[%emt 0:00:36]} 36. Kxc2 {[%emt 0:00:02]} Kf6 {[%emt 0:00:30]} 37. Kd3 {[%emt 0:00:18]} Ke5 {[%emt 0:00:14]} 38. h5 {[%emt 0:01:20]} Kd5 {[%emt 0:00:57]} 39. b3 {[%emt 0:00:08]} f6 {[%emt 0:01:14]} 40. Kd2 {[%emt 0:00:20]} Kc5 {[%emt 0:00:36]} 41. Kd3 {[%emt 0:00:11]} f5 {[%emt 0:00:36]} 42. Kd2 {[%emt 0:01:01]} Kb4 {[%emt 0:00:18]} 43. Kc2 {[%emt 0:00:09]} d3+ {[%emt 0:00:23]} 44. Kxd3 {[%emt 0:00:10]} Kxb3 {[%emt 0:00:06]} 45. Kd4 {[%emt 0:00:09]} Kxa4 {[%emt 0:00:14]} 46. Ke5 {[%emt 0:00:09]} Kb3 {[%emt 0:00:22]} 47. Kxf5 {[%emt 0:00:10]} a4 {[%emt 0:00:14]} 0-1

[Event "FIDE WCCC Open-10 2024"]
[Site "Montesilvano"]
[Date "2024.11.18"]
[Round "2.37"]
[White "Shrubok, Herman"]
[Black "Meitzner, Jonathan Franz"]
[Result "0-1"]
[ECO "B47"]
[WhiteElo "1477"]
[BlackElo "1876"]
[PlyCount "90"]
[EventDate "2024.11.18"]
[EventType "swiss"]
[EventCountry "ITA"]
[TimeControl "5400+30"]

1. e4 {[%emt 0:00:26]} c5 {[%emt 0:00:10]} 2. Nf3 {[%emt 0:00:19]} e6 {[%emt 0:00:07]} 3. d4 {[%emt 0:00:08]} cxd4 {[%emt 0:00:04]} 4. Nxd4 {[%emt 0:00:06]} Nc6 {[%emt 0:00:06]} 5. Nc3 {[%emt 0:00:13]} Qc7 {[%emt 0:00:56]} 6. f4 {[%emt 0:00:18]} a6 {[%emt 0:01:15]} 7. Nxc6 {[%emt 0:00:15]} bxc6 {[%emt 0:03:46]} 8. Bd3 {[%emt 0:00:21]} d5 {[%emt 0:02:52]} 9. Qf3 {[%emt 0:00:59]} Nf6 {[%emt 0:04:17]} 10. O-O {[%emt 0:00:45]} Bb7 {[%emt 0:04:22]} 11. e5 {[%emt 0:01:41]} Nd7 {[%emt 0:00:29]} 12. Bd2 {[%emt 0:01:16]} c5 {[%emt 0:03:29]} 13. Rfe1 {[%emt 0:02:06]} d4 {[%emt 0:12:17]} 14. Ne4 {[%emt 0:00:45]} c4 {[%emt 0:02:23]} 15. Bf1 {[%emt 0:00:37]} Nc5 {[%emt 0:02:03]} 16. Nd6+ {[%emt 0:02:18]} Bxd6 {[%emt 0:03:23]} 17. exd6 {[%emt 1:26:27]} Qxd6 {[%emt 0:05:20]} 18. Qg4 {[%emt 0:00:00]} O-O {[%emt 0:04:54]} 19. Bxc4 {[%emt 0:00:00]} Ne4 {[%emt 0:01:07]} 20. Rad1 {[%emt 0:00:00]} Qb6 {[%emt 0:06:02]} 21. Bd3 {[%emt 0:00:00]} Nxd2 {[%emt 0:08:22]} 22. Rxd2 {[%emt 0:00:00]} Qxb2 {[%emt 0:00:19]} 23. Rde2 {[%emt 0:00:00]} Bc8 {[%emt 0:05:03]} 24. Re5 {[%emt 0:00:00]} Qb4 {[%emt 0:01:17]} 25. Bxh7+ {[%emt 0:00:00]} Kxh7 {[%emt 0:02:22]} 26. Rh5+ {[%emt 0:00:00]} Kg8 {[%emt 0:00:15]} 27. Qh4 {[%emt 0:00:00]} f6 {[%emt 0:01:14]} 28. f5 {[%emt 0:00:00]} e5 {[%emt 0:02:38]} 29. c3 {[%emt 0:00:00]} Qxc3 {[%emt 0:01:35]} 30. Rh8+ {[%emt 0:00:00]} Kf7 {[%emt 0:00:23]} 31. Rxf8+ {[%emt 0:00:00]} Kxf8 {[%emt 0:00:07]} 32. g4 {[%emt 0:00:00]} d3 {[%emt 0:01:10]} 33. Qh8+ {[%emt 0:00:00]} Kf7 {[%emt 0:00:08]} 34. Rd1 {[%emt 0:00:00]} Qd4+ {[%emt 0:00:22]} 35. Kf1 {[%emt 0:00:00]} Qf4+ {[%emt 0:00:05]} 36. Ke1 {[%emt 0:00:00]} Qe3+ {[%emt 0:00:06]} 37. Kf1 {[%emt 0:00:00]} Qe2+ {[%emt 0:00:14]} 38. Kg1 {[%emt 0:00:00]} Qxd1+ {[%emt 0:00:07]} 39. Kf2 {[%emt 0:00:00]} Qe2+ {[%emt 0:00:09]} 40. Kg3 {[%emt 0:00:00]} Qe3+ {[%emt 0:00:44]} 41. Kh4 {[%emt 0:00:00]} Qf2+ {[%emt 0:00:41]} 42. Kh3 {[%emt 0:00:00]} Bb7 {[%emt 0:00:29]} 43. Qh5+ {[%emt 0:00:00]} Ke7 {[%emt 0:00:07]} 44. Qf7+ {[%emt 0:00:00]} Kxf7 {[%emt 0:00:06]} 45. a4 {[%emt 0:00:00]} Bg2# {[%emt 0:00:09]} 0-1

[Event "FIDE WCCC Open-10 2024"]
[Site "Montesilvano"]
[Date "2024.11.18"]
[Round "2.38"]
[White "Kolodziejczyk, Boris"]
[Black "Button-Rabl, Jiban"]
[Result "1-0"]
[ECO "C45"]
[WhiteElo "2115"]
[BlackElo "1435"]
[PlyCount "87"]
[EventDate "2024.11.18"]
[EventType "swiss"]
[EventCountry "ITA"]
[TimeControl "5400+30"]

1. e4 {[%emt 0:00:01]} e5 {[%emt 0:00:01]} 2. Nf3 {[%emt 0:00:02]} Nc6 {[%emt 0:00:16]} 3. d4 {[%emt 0:00:08]} exd4 {[%emt 0:00:07]} 4. Nxd4 {[%emt 0:00:05]} Nf6 {[%emt 0:00:11]} 5. Nxc6 {[%emt 0:00:20]} bxc6 {[%emt 0:00:10]} 6. e5 {[%emt 0:00:14]} Qe7 {[%emt 0:00:12]} 7. Qe2 {[%emt 0:00:15]} Nd5 {[%emt 0:00:06]} 8. Nd2 {[%emt 0:02:25]} g5 {[%emt 0:00:53]} 9. Ne4 {[%emt 0:10:34]} h6 {[%emt 0:07:56]} 10. h4 {[%emt 0:12:42]} Nf4 {[%emt 0:03:35]} 11. Bxf4 {[%emt 0:06:57]} gxf4 {[%emt 0:01:26]} 12. Nf6+ {[%emt 0:04:45]} Kd8 {[%emt 0:00:11]} 13. Nh5 {[%emt 0:03:17]} d5 {[%emt 0:03:47]} 14. exd6 {[%emt 0:02:43]} cxd6 {[%emt 0:00:40]} 15. O-O-O {[%emt 0:01:28]} Rg8 {[%emt 0:02:35]} 16. Nxf4 {[%emt 0:07:43]} h5 {[%emt 0:03:09]} 17. Qd2 {[%emt 0:04:37]} Bh6 {[%emt 0:04:25]} 18. Qxd6+ {[%emt 0:01:14]} Bd7 {[%emt 0:06:50]} 19. Qxh6 {[%emt 0:00:25]} Kc7 {[%emt 0:00:25]} 20. Qxh5 {[%emt 0:03:06]} a5 {[%emt 0:02:21]} 21. Bc4 {[%emt 0:06:25]} Rg4 {[%emt 0:07:55]} 22. Rxd7+ {[%emt 0:02:37]} Qxd7 {[%emt 0:00:51]} 23. Ne6+ {[%emt 0:00:15]} fxe6 {[%emt 0:00:44]} 24. Qxg4 {[%emt 0:00:08]} Re8 {[%emt 0:03:35]} 25. h5 {[%emt 0:00:52]} Qf7 {[%emt 0:02:48]} 26. Qg6 {[%emt 0:01:31]} Qf4+ {[%emt 0:00:22]} 27. Kb1 {[%emt 0:29:11]} Rd8 {[%emt 0:00:50]} 28. Qg3 {[%emt 0:00:00]} Qxg3 {[%emt 0:00:14]} 29. fxg3 {[%emt 0:00:00]} e5 {[%emt 0:01:05]} 30. h6 {[%emt 0:00:00]} Rh8 {[%emt 0:00:09]} 31. h7 {[%emt 0:00:00]} Kd6 {[%emt 0:00:05]} 32. Bg8 {[%emt 0:00:00]} e4 {[%emt 0:00:05]} 33. Kc1 {[%emt 0:00:00]} Ke5 {[%emt 0:00:10]} 34. Rf1 {[%emt 0:00:00]} Kd4 {[%emt 0:00:08]} 35. Kd2 {[%emt 0:00:00]} c5 {[%emt 0:00:09]} 36. g4 {[%emt 0:00:00]} a4 {[%emt 0:00:15]} 37. g5 {[%emt 0:00:00]} c4 {[%emt 0:00:04]} 38. g6 {[%emt 0:00:00]} a3 {[%emt 0:00:07]} 39. g7 {[%emt 0:00:00]} Rxh7 {[%emt 0:00:25]} 40. Bxh7 {[%emt 0:00:00]} axb2 {[%emt 0:00:05]} 41. g8=Q {[%emt 0:00:00]} c3+ {[%emt 0:00:08]} 42. Ke2 {[%emt 0:00:00]} e3 {[%emt 0:00:29]} 43. Qg5 {[%emt 0:00:00]} Kc4 {[%emt 0:00:24]} 44. Rh1 {[%emt 0:08:30]} 1-0

[Event "FIDE WCCC Open-10 2024"]
[Site "Montesilvano"]
[Date "2024.11.18"]
[Round "2.39"]
[White "Otetileu, Amanbek"]
[Black "Chkhartishvili, Lazare"]
[Result "1-0"]
[ECO "B33"]
[WhiteElo "1632"]
[BlackElo "1836"]
[PlyCount "71"]
[EventDate "2024.11.18"]
[EventType "swiss"]
[EventCountry "ITA"]
[TimeControl "5400+30"]

1. e4 {[%emt 0:00:05]} c5 {[%emt 0:00:04]} 2. Nf3 {[%emt 0:00:04]} Nc6 {[%emt 0:00:10]} 3. d4 {[%emt 0:00:04]} cxd4 {[%emt 0:00:05]} 4. Nxd4 {[%emt 0:00:04]} Nf6 {[%emt 0:00:14]} 5. Nc3 {[%emt 0:00:05]} e5 {[%emt 0:00:06]} 6. Ndb5 {[%emt 0:00:10]} d6 {[%emt 0:00:16]} 7. Bg5 {[%emt 0:00:10]} a6 {[%emt 0:00:17]} 8. Na3 {[%emt 0:00:03]} b5 {[%emt 0:00:21]} 9. Nd5 {[%emt 0:00:02]} Be7 {[%emt 0:00:19]} 10. Bxf6 {[%emt 0:00:06]} Bxf6 {[%emt 0:00:06]} 11. c3 {[%emt 0:00:07]} O-O {[%emt 0:00:31]} 12. Bd3 {[%emt 0:00:11]} Bg5 {[%emt 0:01:49]} 13. O-O {[%emt 0:00:22]} Ne7 {[%emt 0:02:08]} 14. Nc2 {[%emt 0:01:41]} Nxd5 {[%emt 0:12:38]} 15. exd5 {[%emt 0:00:01]} Bd7 {[%emt 0:00:55]} 16. Nb4 {[%emt 0:10:14]} f5 {[%emt 0:05:22]} 17. a4 {[%emt 0:01:17]} e4 {[%emt 0:05:43]} 18. Be2 {[%emt 0:02:33]} Qb6 {[%emt 0:01:21]} 19. axb5 {[%emt 0:03:39]} axb5 {[%emt 0:00:18]} 20. Qc2 {[%emt 0:02:19]} Qc5 {[%emt 0:16:18]} 21. Rxa8 {[%emt 0:05:19]} Rxa8 {[%emt 0:00:07]} 22. Kh1 {[%emt 0:00:20]} Rc8 {[%emt 0:17:11]} 23. Qb3 {[%emt 0:00:56]} Re8 {[%emt 0:05:39]} 24. Nc6 {[%emt 0:02:32]} Qb6 {[%emt 0:20:39]} 25. Qxb5 {[%emt 0:00:35]} Qc7 {[%emt 0:02:04]} 26. Qc4 {[%emt 0:00:34]} Kh8 {[%emt 0:00:52]} 27. Ne5 {[%emt 0:01:14]} Qxc4 {[%emt 0:00:26]} 28. Nxc4 {[%emt 0:00:04]} Be7 {[%emt 0:01:22]} 29. Ra1 {[%emt 0:01:22]} f4 {[%emt 0:03:01]} 30. Ra7 {[%emt 0:01:38]} Bf5 {[%emt 0:01:24]} 31. b4 {[%emt 0:00:35]} Bf8 {[%emt 0:01:29]} 32. g3 {[%emt 0:00:54]} e3 {[%emt 0:01:35]} 33. f3 {[%emt 0:00:38]} g5 {[%emt 0:01:02]} 34. g4 {[%emt 0:00:37]} Bc2 {[%emt 0:00:38]} 35. Kg2 {[%emt 0:02:32]} Bb3 {[%emt 0:00:44]} 36. Nb6 {[%emt 0:00:48]} 1-0

[Event "FIDE WCCC Open-10 2024"]
[Site "Montesilvano"]
[Date "2024.11.18"]
[Round "2.40"]
[White "Bulat, Mansur"]
[Black "Akramov, Khusan"]
[Result "0-1"]
[ECO "B14"]
[WhiteElo "1610"]
[BlackElo "1782"]
[PlyCount "128"]
[EventDate "2024.11.18"]
[EventType "swiss"]
[EventCountry "ITA"]
[TimeControl "5400+30"]

1. e4 {[%emt 0:00:19]} c6 {[%emt 0:00:04]} 2. d4 {[%emt 0:00:28]} d5 {[%emt 0:00:05]} 3. exd5 {[%emt 0:00:33]} cxd5 {[%emt 0:00:06]} 4. c4 {[%emt 0:00:30]} Nf6 {[%emt 0:00:06]} 5. Nc3 {[%emt 0:00:24]} g6 {[%emt 0:00:05]} 6. c5 {[%emt 0:01:35]} Bg7 {[%emt 0:00:05]} 7. Nf3 {[%emt 0:03:33]} O-O {[%emt 0:00:09]} 8. Bd3 {[%emt 0:02:10]} b6 {[%emt 0:03:38]} 9. b4 {[%emt 0:06:22]} a5 {[%emt 0:04:08]} 10. Ba3 {[%emt 0:05:10]} axb4 {[%emt 0:03:58]} 11. Bxb4 {[%emt 0:00:10]} Nc6 {[%emt 0:01:35]} 12. a3 {[%emt 0:10:13]} Bg4 {[%emt 0:02:19]} 13. Be2 {[%emt 0:07:15]} bxc5 {[%emt 0:03:51]} 14. Bxc5 {[%emt 0:00:09]} Ne4 {[%emt 0:05:55]} 15. Rc1 {[%emt 0:17:19]} Qa5 {[%emt 0:01:07]} 16. Qd3 {[%emt 0:11:27]} Nxc5 {[%emt 0:00:36]} 17. dxc5 {[%emt 0:00:07]} Bf5 {[%emt 0:00:25]} 18. Qd2 {[%emt 0:01:14]} d4 {[%emt 0:04:47]} 19. Nd5 {[%emt 0:05:52]} d3 {[%emt 0:01:21]} 20. Bd1 {[%emt 0:01:40]} Qxd2+ {[%emt 0:07:40]} 21. Nxd2 {[%emt 0:01:58]} Rxa3 {[%emt 0:04:21]} 22. Ne3 {[%emt 0:03:54]} Bc3 {[%emt 0:02:41]} 23. Nec4 {[%emt 0:01:49]} Bxd2+ {[%emt 0:02:36]} 24. Nxd2 {[%emt 0:00:31]} Nd4 {[%emt 0:02:20]} 25. g4 {[%emt 0:03:22]} Be6 {[%emt 0:01:33]} 26. f3 {[%emt 0:01:23]} f5 {[%emt 0:03:55]} 27. h3 {[%emt 0:02:35]} fxg4 {[%emt 0:01:56]} 28. hxg4 {[%emt 0:00:51]} Bd5 {[%emt 0:00:19]} 29. Rf1 {[%emt 0:02:37]} Rf6 {[%emt 0:00:23]} 30. Nc4 {[%emt 0:01:08]} Bxc4 {[%emt 0:01:12]} 31. Rxc4 {[%emt 0:00:06]} Nc6 {[%emt 0:04:34]} 32. Re4 {[%emt 0:01:56]} Rf8 {[%emt 0:06:18]} 33. Rf2 {[%emt 0:03:49]} Rd8 {[%emt 0:02:14]} 34. Rd2 {[%emt 0:01:24]} Rd5 {[%emt 0:03:32]} 35. Re3 {[%emt 0:01:29]} Kf7 {[%emt 0:06:30]} 36. f4 {[%emt 0:00:30]} Rd4 {[%emt 0:04:43]} 37. Bf3 {[%emt 0:00:35]} Nb4 {[%emt 0:00:46]} 38. Re4 {[%emt 0:00:20]} Nc2+ {[%emt 0:07:51]} 39. Kf2 {[%emt 0:00:07]} Raa4 {[%emt 0:00:21]} 40. Rxd4 {[%emt 0:01:07]} Rxd4 {[%emt 0:00:07]} 41. c6 {[%emt 0:00:07]} Ke8 {[%emt 0:02:03]} 42. f5 {[%emt 0:01:29]} g5 {[%emt 0:01:29]} 43. Kg3 {[%emt 0:00:56]} Kd8 {[%emt 0:00:27]} 44. Bd1 {[%emt 0:00:32]} Ne3 {[%emt 0:02:05]} 45. Kf2 {[%emt 0:00:45]} Nc4 {[%emt 0:00:14]} 46. Ra2 {[%emt 0:00:04]} Rf4+ {[%emt 0:01:38]} 47. Kg3 {[%emt 0:00:35]} Kc7 {[%emt 0:02:02]} 48. Bf3 {[%emt 0:00:30]} d2 {[%emt 0:01:02]} 49. Ra7+ {[%emt 0:00:17]} Kb8 {[%emt 0:00:44]} 50. Rb7+ {[%emt 0:00:10]} Kc8 {[%emt 0:00:06]} 51. Rb1 {[%emt 0:00:07]} Ne3 {[%emt 0:00:13]} 52. Be2 {[%emt 0:00:16]} Nd5 {[%emt 0:02:42]} 53. Rb3 {[%emt 0:02:12]} Re4 {[%emt 0:00:24]} 54. Kf2 {[%emt 0:00:21]} Nf4 {[%emt 0:00:52]} 55. Bf3 {[%emt 0:00:38]} Re1 {[%emt 0:00:26]} 56. Re3 {[%emt 0:00:34]} Nh3+ {[%emt 0:00:12]} 57. Kg2 {[%emt 0:00:25]} Rxe3 {[%emt 0:00:04]} 58. f6 {[%emt 0:00:08]} exf6 {[%emt 0:00:06]} 59. c7 {[%emt 0:00:10]} Nf4+ {[%emt 0:00:06]} 60. Kf2 {[%emt 0:00:19]} Rxf3+ {[%emt 0:00:04]} 61. Kxf3 {[%emt 0:00:05]} d1=Q+ {[%emt 0:00:05]} 62. Kg3 {[%emt 0:00:15]} Qd2 {[%emt 0:00:39]} 63. Kf3 {[%emt 0:00:06]} Qe2+ {[%emt 0:00:03]} 64. Kg3 {[%emt 0:00:04]} Qg2# {[%emt 0:00:04]} 0-1